fUSD/lending_fUSD_20241202
["ID","MTS","AMOUNT","RATE_DAILY","PERIOD"]
[343991387,1733170032069,1211.52,0.00025,120]
[343991388,1733170032165,2874.92,0.00025,120]
[343991389,1733170032267,500.0,0.00025,120]
[343991390,1733170032663,500.0,0.00025,120]
[343991391,1733170033163,500.0,0.00025,120]
[343991392,1733170033265,562.54,0.00025,120]
[343991393,1733170033474,500.0,0.00025,120]
[343991394,1733170033577,1414.63,0.00025,120]
[343991395,1733170033780,500.0,0.00025,120]
[343991396,1733170033897,500.0,0.00025,120]
[343991397,1733170034000,500.0,0.00025,120]
[343991398,1733170034060,500.0,0.00025,120]
[343991399,1733170034275,183.10486491,0.00025,120]
[343991400,1733170034562,2664.32,7.072e-05,2]
[343991401,1733170034642,532.06929753,0.00025,120]
[343991402,1733170034896,1438.32,0.00025,120]
[343991403,1733170035191,522.36,0.00025,120]
[343991404,1733170035245,500.0,0.00025,120]
[343991405,1733170035342,500.0,0.00025,120]
[343991406,1733170035589,300.0,0.00025,120]
[343991407,1733170036277,500.0,0.00025,120]
[343991408,1733170036392,500.0,0.00025,120]
[343991409,1733170036676,500.0,0.00025,120]
[343991410,1733170036777,991.88,0.00025,120]
[343991411,1733170036857,500.0,0.00025,120]
[343991412,1733170037123,500.0,0.00025,120]
[343991413,1733170037187,1671.44,0.00025,120]
[343991414,1733170037237,1464.96,0.00025,120]
[343991415,1733170037390,1239.7,0.00025,120]
[343991416,1733170037469,3681.27,0.00025,120]
[343991417,1733170037547,500.0,0.00025,120]
[343991418,1733170037669,733.2,0.00025,120]
[343991419,1733170037865,500.0,0.00025,120]
[343991420,1733170038105,500.0,0.00025,120]
[343991421,1733170038428,500.0,0.00025,120]
[343991422,1733170038628,500.0,0.00025,120]
[343991423,1733170038791,500.0,0.00025,120]
[343991424,1733170038887,500.0,0.00025,120]
[343991425,1733170039085,1195.07,0.00025,120]
[343991426,1733170039335,675.06,0.00025,120]
[343991427,1733170039455,500.0,0.00025,120]
[343991428,1733170039820,500.0,0.00025,120]
[343991429,1733170040227,500.0,0.00025,120]
[343991430,1733170040276,500.0,0.00025,120]
[343991431,1733170040328,500.0,0.00025,120]
[343991432,1733170040470,2821.79,0.00025,120]
[343991433,1733170040704,2940.91,0.00025,120]
[343991434,1733170040848,1305.47,0.00025,120]
[343991435,1733170040953,500.0,0.00025,120]
[343991436,1733170041100,4778.7,0.00025,120]
[343991437,1733170041166,1772.33,0.00025,120]
[343991438,1733170041298,500.0,0.00025,120]
[343991439,1733170041548,500.0,0.00025,120]
[343991440,1733170041600,500.2160895,0.00025,120]
[343991441,1733170041656,1836.32,0.00025,120]
[343991442,1733170041812,2938.81,0.00025,120]
[343991443,1733170041943,500.0,0.00025,120]
[343991444,1733170042096,1003.35,0.00025,120]
[343991445,1733170042182,500.0,0.00025,120]
[343991446,1733170042270,500.0,0.00025,120]
[343991447,1733170042324,913.31,0.00025,120]
[343991448,1733170042421,500.0,0.00025,120]
[343991449,1733170042547,500.0,0.00025,120]
[343991450,1733170042703,500.0,0.00025,120]
[343991451,1733170042773,500.0,0.00025,120]
[343991452,1733170042976,500.0,0.00025,120]
[343991453,1733170043180,500.0,0.00025,120]
[343991454,1733170043227,574.8,0.00025,120]
[343991455,1733170043291,500.0,0.00025,120]
[343991456,1733170043824,508.93,0.00025,120]
[343991457,1733170043895,500.0,0.00025,120]
[343991458,1733170044040,979.6,0.00025,120]
[343991459,1733170044232,2366.31,0.00025,120]
[343991460,1733170044339,1557.69,0.00025,120]
[343991461,1733170044422,500.0,0.00025,120]
[343991462,1733170044492,2280.92,0.00025,120]
[343991463,1733170044576,500.0,0.00025,120]
[343991464,1733170044844,3030.95,0.00025,120]
[343991465,1733170045022,1022.12,0.00025,120]
[343991466,1733170045227,500.0,0.00025,120]
[343991467,1733170045394,2520.9,0.00025,120]
[343991468,1733170045582,2498.82,0.00025,120]
[343991469,1733170045813,3146.59,0.00025,120]
[343991470,1733170045976,500.0,0.00025,120]
[343991471,1733170046111,509.98,0.00025,120]
[343991472,1733170046249,500.0,0.00025,120]
[343991473,1733170046692,500.0,0.00025,120]
[343991474,1733170046764,10220.1,0.00025,120]
[343991475,1733170047313,687.86,0.00025,120]
[343991476,1733170047461,500.0,0.00025,120]
[343991477,1733170047546,8516.75,0.00025,120]
[343991478,1733170047604,599.1,0.00025,120]
[343991479,1733170047704,170.43109178,0.00025,120]
[343991480,1733170048083,500.0,0.00025,120]
[343991481,1733170048147,2038.13,0.00025,120]
[343991482,1733170048462,500.0,0.00025,120]
[343991483,1733170048605,500.0,0.00025,120]
[343991484,1733170048782,2061.42,0.00025,120]
[343991485,1733170048879,4930.2,0.00025,120]
[343991486,1733170048991,2383.4,0.00025,120]
[343991487,1733170049154,2404.71,0.00025,120]
[343991488,1733170049203,500.0,0.00025,120]
[343991489,1733170049266,500.0,0.00025,120]
[343991490,1733170049338,3107.7,0.00025,120]
[343991491,1733170049536,7496.12,0.00025,120]
[343991492,1733170049628,500.0,0.00025,120]
[343991493,1733170049853,583.36,0.00025,120]
[343991494,1733170049928,500.0,0.00025,120]
[343991495,1733170050036,1262.35,0.00025,120]
[343991496,1733170050095,500.0,0.00025,120]
[343991497,1733170050147,500.0,0.00025,120]
[343991498,1733170050206,530.68,0.00025,120]
[343991499,1733170050382,500.0,0.00025,120]
[343991500,1733170050578,1699.0,0.00025,120]
[343991501,1733170050712,978.59,0.00025,120]
[343991502,1733170051196,500.0,0.00025,120]
[343991503,1733170051434,4591.08,0.00025,120]
[343991504,1733170051644,3410.32,0.00025,120]
[343991505,1733170051706,500.0,0.00025,120]
[343991506,1733170051857,500.0,0.00025,120]
[343991507,1733170051982,500.0,0.00025,120]
[343991508,1733170052202,4570.12,0.00025,120]
[343991509,1733170052261,803.23,0.00025,120]
[343991510,1733170052321,1800.28,0.00025,120]
[343991511,1733170052631,500.0,0.00025,120]
[343991512,1733170052774,804.01,0.00025,120]
[343991513,1733170052988,500.0,0.00025,120]
[343991514,1733170053055,500.0,0.00025,120]
[343991515,1733170053317,500.0,0.00025,120]
[343991516,1733170053412,500.0,0.00025,120]
[343991517,1733170053473,583.99,0.00025,120]
[343991518,1733170053701,948.86,0.00025,120]
[343991519,1733170053774,2240.81,0.00025,120]
[343991520,1733170053990,500.0,0.00025,120]
[343991521,1733170055284,4476.53,0.00025,120]
[343991522,1733170055434,609.73,0.00025,120]
[343991523,1733170055510,3451.65,0.00025,120]
[343991524,1733170055638,500.0,0.00025,120]
[343991525,1733170055706,1210.88,0.00025,120]
[343991526,1733170055958,2906.03,0.00025,120]
[343991527,1733170056055,500.0,0.00025,120]
[343991528,1733170056158,500.0,0.00025,120]
[343991529,1733170056206,500.0,0.00025,120]
[343991530,1733170056297,500.0,0.00025,120]
[343991531,1733170056451,2707.91,0.00025,120]
[343991532,1733170056507,2532.91,0.00025,120]
[343991533,1733170057458,500.0,0.00025,120]
[343991534,1733170057657,500.0,0.00025,120]
[343991535,1733170057723,500.0,0.00025,120]
[343991536,1733170057889,500.0,0.00025,120]
[343991537,1733170057989,500.0,0.00025,120]
[343991538,1733170058058,686.64,0.00025,120]
[343991539,1733170058135,1528.2,0.00025,120]
[343991540,1733170058184,500.0,0.00025,120]
[343991541,1733170058312,500.0,0.00025,120]
[343991542,1733170058417,500.0,0.00025,120]
[343991543,1733170058501,500.0,0.00025,120]
[343991544,1733170058614,1466.81,0.00025,120]
[343991545,1733170058801,500.0,0.00025,120]
[343991546,1733170059180,500.0,0.00025,120]
[343991547,1733170059240,1731.15,0.00025,120]
[343991548,1733170059337,3234.79,0.00025,120]
[343991549,1733170059395,501.99263368,0.00025,120]
[343991550,1733170059493,500.0,0.00025,120]
[343991551,1733170059638,6489.84,0.00025,120]
[343991552,1733170059742,500.0,0.00025,120]
[343991553,1733170059922,500.0,0.00025,120]
[343991554,1733170060135,980.22,0.00025,120]
[343991555,1733170060255,530.91,0.00025,120]
[343991556,1733170060329,598.14,0.00025,120]
[343991557,1733170060391,500.0,0.00025,120]
[343991558,1733170060504,500.0,0.00025,120]
[343991559,1733170060580,28000.73,0.00025,120]
[343991560,1733170060731,607.65367613,0.00025,120]
[343991561,1733170060785,26457.94,0.00025,120]
[343991562,1733170060861,500.0,0.00025,120]
[343991563,1733170061257,1572.04,0.00025,120]
[343991564,1733170061370,500.0,0.00025,120]
[343991565,1733170061734,984.25,0.00025,120]
[343991566,1733170062019,4116.32,0.00025,120]
[343991567,1733170062116,1027.4,0.00025,120]
[343991568,1733170062265,2346.8,0.00025,120]
[343991569,1733170062527,500.0,0.00025,120]
[343991570,1733170062585,500.0,0.00025,120]
[343991571,1733170062686,500.0,0.00025,120]
[343991572,1733170062867,7315.07,0.00025,120]
[343991573,1733170062955,504.43,0.00025,120]
[343991574,1733170063020,500.0,0.00025,120]
[343991575,1733170063157,500.0,0.00025,120]
[343991576,1733170063217,952.59,0.00025,120]
[343991577,1733170063314,4906.89,0.00025,120]
[343991578,1733170063386,2277.39,0.00025,120]
[343991579,1733170063989,500.0,0.00025,120]
[343991580,1733170064071,500.0,0.00025,120]
[343991581,1733170064145,500.0,0.00025,120]
[343991582,1733170064213,2240.65,0.00025,120]
[343991583,1733170064296,500.0,0.00025,120]
[343991584,1733170064392,500.0,0.00025,120]
[343991585,1733170064548,2800.21,0.00025,120]
[343991586,1733170064661,1006.76,0.00025,120]
[343991587,1733170064720,500.0,0.00025,120]
[343991588,1733170064825,500.0,0.00025,120]
[343991589,1733170064915,2544.14,0.00025,120]
[343991590,1733170065130,500.0,0.00025,120]
[343991591,1733170065355,500.0,0.00025,120]
[343991592,1733170065471,343.77682609,0.00025,120]
[343991593,1733170065596,9841.85,0.00025,120]
[343991594,1733170065670,500.0,0.00025,120]
[343991595,1733170065787,500.0,0.00025,120]
[343991596,1733170065989,853.14,0.00025,120]
[343991597,1733170066203,500.0,0.00025,120]
[343991598,1733170066256,628.28,0.00025,120]
[343991599,1733170066487,500.0,0.00025,120]
[343991600,1733170066581,500.0,0.00025,120]
[343991601,1733170066643,500.0,0.00025,120]
[343991602,1733170066747,2771.22,0.00025,120]
[343991603,1733170066832,500.0,0.00025,120]
[343991604,1733170066963,2018.62,0.00025,120]
[343991605,1733170067497,1034.84,0.00025,120]
[343991606,1733170067619,500.0,0.00025,120]
[343991607,1733170067715,500.0,0.00025,120]
[343991608,1733170067884,500.0,0.00025,120]
[343991609,1733170068085,14243.73,0.00025,120]
[343991610,1733170068304,500.0,0.00025,120]
[343991611,1733170068373,500.0,0.00025,120]
[343991612,1733170068515,2434.92,0.00025,120]
[343991613,1733170068626,619.45,0.00025,120]
[343991614,1733170068716,500.0,0.00025,120]
[343991615,1733170068788,2677.71,0.00025,120]
[343991616,1733170068949,500.0,0.00025,120]
[343991617,1733170069012,500.0,0.00025,120]
[343991618,1733170069311,4762.19,0.00025,120]
[343991619,1733170069383,914.57,0.00025,120]
[343991620,1733170069475,2567.51,0.00025,120]
[343991621,1733170069598,500.0,0.00025,120]
[343991622,1733170069812,977.08,0.00025,120]
[343991623,1733170069890,713.04,0.00025,120]
[343991624,1733170070077,500.0,0.00025,120]
[343991625,1733170070300,5922.98,0.00025,120]
[343991626,1733170070450,500.0,0.00025,120]
[343991627,1733170070518,584.36,0.00025,120]
[343991628,1733170070627,942.72,0.00025,120]
[343991629,1733170070937,500.0,0.00025,120]
[343991630,1733170071058,3496.04,0.00025,120]
[343991631,1733170071122,526.37,0.00025,120]
[343991632,1733170071222,500.0,0.00025,120]
[343991633,1733170071792,500.0,0.00025,120]
[343991634,1733170071881,500.0,0.00025,120]
[343991635,1733170071985,500.0,0.00025,120]
[343991636,1733170072100,500.0,0.00025,120]
[343991637,1733170072225,1408.96,0.00025,120]
[343991638,1733170072352,500.0,0.00025,120]
[343991639,1733170072402,1652.25,0.00025,120]
[343991640,1733170072466,500.0,0.00025,120]
[343991641,1733170073166,500.0,0.00025,120]
[343991642,1733170073232,3574.23,0.00025,120]
[343991643,1733170073320,500.0,0.00025,120]
[343991644,1733170073513,720.98,0.00025,120]
[343991645,1733170073597,1667.93,0.00025,120]
[343991646,1733170073739,500.0,0.00025,120]
[343991647,1733170073840,500.0,0.00025,120]
[343991648,1733170073897,1096.18,0.00025,120]
[343991649,1733170074006,500.0,0.00025,120]
[343991650,1733170074055,1536.14,0.00025,120]
[343991651,1733170074155,500.0,0.00025,120]
[343991652,1733170074445,500.0,0.00025,120]
[343991653,1733170074522,500.0,0.00025,120]
[343991654,1733170074878,500.0,0.00025,120]
[343991655,1733170074981,1090.64,0.00025,120]
[343991656,1733170075037,11185.02,0.00025,120]
[343991657,1733170075091,500.0,0.00025,120]
[343991658,1733170075147,2083.78,0.00025,120]
[343991659,1733170075307,500.0,0.00025,120]
[343991660,1733170075355,500.0,0.00025,120]
[343991661,1733170075437,500.0,0.00025,120]
[343991662,1733170075499,500.0,0.00025,120]
[343991663,1733170075549,17331.37,0.00025,120]
[343991664,1733170075602,667.49,0.00025,120]
[343991665,1733170075681,500.0,0.00025,120]
[343991666,1733170075846,5264.99,0.00025,120]
[343991667,1733170075949,500.0,0.00025,120]
[343991668,1733170076270,2799.31,0.00025,120]
[343991669,1733170076326,357.5,7.013e-05,2]
[343991670,1733170076394,500.0,0.00025,120]
[343991671,1733170076705,500.0,0.00025,120]
[343991672,1733170076976,500.0,0.00025,120]
[343991673,1733170077067,500.0,0.00025,120]
[343991674,1733170077160,500.0,0.00025,120]
[343991675,1733170077234,2475.54,0.00025,120]
[343991676,1733170077376,500.0,0.00025,120]
[343991677,1733170077451,2789.31,0.00025,120]
[343991678,1733170078056,500.0,0.00025,120]
[343991679,1733170078205,500.0,0.00025,120]
[343991680,1733170078329,500.0,0.00025,120]
[343991681,1733170078410,500.0,0.00025,120]
[343991682,1733170078715,1589.27,0.00025,120]
[343991683,1733170078840,1567.89,0.00025,120]
[343991684,1733170078976,529.25,0.00025,120]
[343991685,1733170079102,500.0,0.00025,120]
[343991686,1733170079275,1500.27,0.00025,120]
[343991687,1733170079327,1615.71,0.00025,120]
[343991688,1733170079379,1977.19,0.00025,120]
[343991689,1733170079569,500.0,0.00025,120]
[343991690,1733170079769,622.82,0.00025,120]
[343991691,1733170079839,500.0,0.00025,120]
[343991692,1733170079897,1036.79,0.00025,120]
[343991693,1733170080152,2849.06,0.00025,120]
[343991694,1733170080294,500.0,0.00025,120]
[343991695,1733170080444,4702.1,0.00025,120]
[343991696,1733170080544,500.0,0.00025,120]
[343991697,1733170080833,918.6,0.00025,120]
[343991698,1733170080924,500.0,0.00025,120]
[343991699,1733170080990,500.0,0.00025,120]
[343991700,1733170081192,1121.53,0.00025,120]
[343991701,1733170081447,500.0,0.00025,120]
[343991702,1733170081498,500.0,0.00025,120]
[343991703,1733170081604,7354.04,0.00025,120]
[343991704,1733170082055,2096.0,0.00025,120]
[343991705,1733170082117,826.9,0.00025,120]
[343991706,1733170082173,219.83085247,0.00025,120]
[343991707,1733170082313,669.35,0.00025,120]
[343991708,1733170082403,500.0,0.00025,120]
[343991709,1733170082461,500.0,0.00025,120]
[343991710,1733170082529,500.0,0.00025,120]
[343991711,1733170082736,951.42,0.00025,120]
[343991712,1733170082851,1392.37,0.00025,120]
[343991713,1733170082994,1217.1,0.00025,120]
[343991714,1733170083212,2987.68,0.00025,120]
[343991715,1733170083344,2547.24,0.00025,120]
[343991716,1733170083582,3655.4,0.00025,120]
[343991717,1733170083783,500.0,0.00025,120]
[343991718,1733170083932,4062.16,0.00025,120]
[343991719,1733170084001,323.27416107,0.00025,120]
[343991720,1733170084069,500.0,0.00025,120]
[343991721,1733170084177,475.00000001,0.00025,120]
[343991722,1733170084330,4637.94,0.00025,120]
[343991723,1733170084423,882.69,0.00025,120]
[343991724,1733170084702,500.0,0.00025,120]
[343991725,1733170084792,3279.41,0.00025,120]
[343991726,1733170084855,500.0,0.00025,120]
[343991727,1733170085074,1472.99,0.00025,120]
[343991728,1733170085218,830.17,0.00025,120]
[343991729,1733170085272,1466.44,0.00025,120]
[343991730,1733170085371,500.0,0.00025,120]
[343991731,1733170085425,11656.6,0.00025,120]
[343991732,1733170085528,4111.15,0.00025,120]
[343991733,1733170085670,777.18,0.00025,120]
[343991734,1733170085850,1206.71,0.00025,120]
[343991735,1733170086111,500.0,0.00025,120]
[343991736,1733170086504,500.0,0.00025,120]
[343991737,1733170086814,1267.5,0.00025,120]
[343991738,1733170087010,1232.38,0.00025,120]
[343991739,1733170087058,2451.02,0.00025,120]
[343991740,1733170087122,500.0,0.00025,120]
[343991741,1733170087200,500.0,0.00025,120]
[343991742,1733170087272,500.0,0.00025,120]
[343991743,1733170087348,500.0,0.00025,120]
[343991744,1733170087623,500.0,0.00025,120]
[343991745,1733170087747,500.0,0.00025,120]
[343991746,1733170087934,2652.1,0.00025,120]
[343991747,1733170088563,1685.26,0.00025,120]
[343991748,1733170088697,723.98,0.00025,120]
[343991749,1733170088749,4554.32,0.00025,120]
[343991750,1733170088826,214.48536082,0.00025,120]
[343991751,1733170088996,500.0,0.00025,120]
[343991752,1733170089242,769.04,0.00025,120]
[343991753,1733170089294,500.0,0.00025,120]
[343991754,1733170089526,500.0,0.00025,120]
[343991755,1733170089739,837.19,0.00025,120]
[343991756,1733170089945,539.19,0.00025,120]
[343991757,1733170090033,500.0,0.00025,120]
[343991758,1733170090336,500.0,0.00025,120]
[343991759,1733170090389,500.0,0.00025,120]
[343991760,1733170090524,11540.24,0.00025,120]
[343991761,1733170091012,952.47,0.00025,120]
[343991762,1733170091131,2912.34,0.00025,120]
[343991763,1733170091301,2254.3,0.00025,120]
[343991764,1733170091389,500.0,0.00025,90]
[343991765,1733170091556,1035.62,0.00025,120]
[343991766,1733170091869,1346.16,0.00025,120]
[343991767,1733170091953,500.0,0.00025,120]
[343991768,1733170092026,500.0,0.00025,120]
[343991769,1733170092086,500.0,0.00025,120]
[343991770,1733170092227,1316.13,0.00025,120]
[343991771,1733170092379,4810.38,0.00025,120]
[343991772,1733170092663,500.0,0.00025,120]
[343991773,1733170092740,500.0,0.00025,120]
[343991774,1733170093018,500.0,0.00025,120]
[343991775,1733170093070,1900.63,0.00025,120]
[343991776,1733170093394,2044.26,0.00025,120]
[343991777,1733170093539,8024.36,0.00025,120]
[343991778,1733170093770,500.0,0.00025,120]
[343991779,1733170093919,1597.67,7.039e-05,2]
[343991780,1733170094104,1200.42,0.00025,120]
[343991781,1733170094269,500.0,0.00025,120]
[343991782,1733170094357,3990.23,0.00025,120]
[343991783,1733170094632,945.85,0.00025,120]
[343991784,1733170094788,500.0,0.00025,120]
[343991785,1733170094894,500.0,0.00025,120]
[343991786,1733170095366,589.75,0.00025,120]
[343991787,1733170095480,1134.9,0.00025,120]
[343991788,1733170095565,500.0,0.00025,120]
[343991789,1733170095781,500.0,0.00025,120]
[343991790,1733170096028,1551.74,0.00025,120]
[343991791,1733170096150,500.0,0.00025,120]
[343991792,1733170096417,500.0,0.00025,120]
[343991793,1733170096508,3727.47,0.00025,120]
[343991794,1733170096960,500.0,0.00025,120]
[343991795,1733170097215,500.0,0.00025,120]
[343991796,1733170097383,500.0,0.00025,120]
[343991797,1733170097519,1394.5,0.00025,120]
[343991798,1733170097626,500.0,0.00025,120]
[343991799,1733170097929,10533.24,0.00025,120]
[343991800,1733170098032,910.74,0.00025,120]
[343991807,1733170099615,500.0,0.00025,120]
[343991808,1733170099671,500.0,0.00025,120]
[343991809,1733170099735,500.0,0.00025,120]
[343991810,1733170100452,2779.68,0.00025,120]
[343991811,1733170100550,12442.65,0.00025,120]
[343991812,1733170100627,2462.51,0.00025,120]
[343991813,1733170100721,7165.62,0.00025,120]
[343991814,1733170100926,3755.99,0.00025,120]
[343991815,1733170101011,500.0,0.00025,120]
[343991816,1733170101115,1583.5,0.00025,120]
[343991817,1733170101248,500.0,0.00025,120]
[343991818,1733170101364,604.51,0.00025,120]
[343991819,1733170101455,500.0,0.00025,120]
[343991820,1733170102005,500.0,0.00025,120]
[343991821,1733170102158,500.0,0.00025,120]
[343991822,1733170102264,500.0,0.00025,120]
[343991823,1733170102361,500.0,0.00025,120]
[343991824,1733170102437,7111.28,0.00025,120]
[343991825,1733170102517,500.0,0.00025,120]
[343991826,1733170103133,500.0,0.00025,120]
[343991827,1733170103337,505.53,0.00025,120]
[343991828,1733170103548,500.0,0.00025,120]
[343991829,1733170103751,3521.73,0.00025,120]
[343991830,1733170103811,500.0,0.00025,120]
[343991831,1733170103897,1318.88,0.00025,120]
[343991832,1733170104163,1500.0,0.00025,120]
[343991833,1733170104258,3134.09,0.00025,120]
[343991834,1733170104386,352.87776136,0.00025,120]
[343991835,1733170104441,514.0859926,0.00025,120]
[343991836,1733170104515,185.74454809,0.00025,120]
[343991837,1733170104652,500.0,0.00025,120]
[343991838,1733170104824,500.0,0.00025,120]
[343991839,1733170104893,1728.29,0.00025,120]
[343991840,1733170105056,500.0,0.00025,120]
[343991841,1733170105138,500.0,0.00025,120]
[343991842,1733170105387,500.0,0.00025,120]
[343991843,1733170105471,500.0,0.00025,120]
[343991844,1733170105798,8086.16,0.00025,120]
[343991845,1733170106117,500.0,0.00025,120]
[343991846,1733170106170,1093.07,0.00025,120]
[343991847,1733170106331,500.0,0.00025,120]
[343991848,1733170106575,500.0,0.00025,120]
[343991849,1733170106650,500.0,0.00025,120]
[343991850,1733170106731,500.0,0.00025,120]
[343991851,1733170106788,500.0,0.00025,120]
[343991852,1733170106848,956.72,0.00025,120]
[343991853,1733170107315,635.79,0.00025,120]
[343991854,1733170107380,500.0,0.00025,120]
[343991855,1733170107520,500.0,0.00025,120]
[343991856,1733170107581,617.53,0.00025,120]
[343991857,1733170107652,500.0,0.00025,120]
[343991858,1733170108419,588.2,0.00025,120]
[343991859,1733170108694,500.0,0.00025,120]
[343991860,1733170108795,500.0,0.00025,120]
[343991861,1733170108949,568.54,0.00025,120]
[343991862,1733170109684,503.66410376,0.00025,120]
[343991863,1733170109861,1713.08,0.00025,120]
[343991864,1733170109916,500.0,0.00025,120]
[343991865,1733170109976,512.5161685,0.00025,120]
[343991866,1733170110056,500.0,0.00025,120]
[343991867,1733170110343,500.0,0.00025,120]
[343991868,1733170110932,500.0,0.00025,120]
[343991869,1733170111068,500.0,0.00025,120]
[343991870,1733170111154,500.0,0.00025,120]
[343991871,1733170111220,1060.2,0.00025,120]
[343991872,1733170111448,500.0,0.00025,120]
[343991873,1733170111535,792.62,0.00025,120]
[343991874,1733170111619,500.0,0.00025,120]
[343991875,1733170111690,1118.61,0.00025,120]
[343991876,1733170111796,500.0,0.00025,120]
[343991877,1733170111980,500.0,0.00025,120]
[343991878,1733170112139,500.0,0.00025,120]
[343991879,1733170112288,2005.55,0.00025,120]
[343991880,1733170112576,500.0,0.00025,120]
[343991881,1733170112797,1044.78,0.00025,120]
[343991882,1733170113151,674.91,0.00025,120]
[343991883,1733170113336,500.0,0.00025,120]
[343991884,1733170113425,542.57,0.00025,120]
[343991885,1733170113489,2218.28,0.00025,120]
[343991886,1733170113569,543.51,0.00025,120]
[343991887,1733170113641,557.42,0.00025,120]
[343991888,1733170113754,500.0,0.00025,120]
[343991889,1733170113861,500.0,0.00025,120]
[343991890,1733170114107,500.0,0.00025,120]
[343991891,1733170114180,500.0,0.00025,120]
[343991892,1733170114576,500.0,0.00025,120]